fUSD/lending_fUSD_20240629
["ID","MTS","AMOUNT","RATE_DAILY","PERIOD"]
[330613933,1719624680115,-500.0,0.00022027,3]
[330613934,1719624680125,-500.0,0.00022027,3]
[330613935,1719624680135,-2136.24,0.00022027,3]
[330613936,1719624680146,-1078.91,0.00022027,3]
[330613937,1719624680156,-500.0,0.00022027,3]
[330613938,1719624680166,-1209.59,0.00022027,3]
[330613939,1719624680176,-1384.39,0.00022027,3]
[330613940,1719624680188,-1004.41,0.00022027,3]
[330613941,1719624680198,-3169.0,0.00022027,3]
[330613942,1719624680208,-500.0,0.00022027,3]
[330613943,1719624680219,-668.92,0.00022027,3]
[330613944,1719624680229,-500.0,0.00022027,3]
[330613945,1719624680241,-500.0,0.00022027,3]
[330613946,1719624680252,-4295.14,0.00022027,3]
[330613947,1719624680263,-1583.74,0.00022027,3]
[330613948,1719624680273,-39648.0,0.00022027,3]
[330613949,1719624680283,-500.0,0.00022027,3]
[330613950,1719624680294,-500.0,0.00022027,3]
[330613951,1719624680304,-1043.71,0.00022027,3]
[330613952,1719624680315,-500.0,0.00022027,3]
[330613953,1719624680325,-500.0,0.00022027,3]
[330613954,1719624680336,-500.0,0.00022027,3]
[330613955,1719624680350,-500.0,0.00022027,3]
[330613956,1719624680361,-879.55,0.00022027,3]
[330613957,1719624680371,-875.07,0.00022027,3]
[330613958,1719624680383,-717.04,0.00022027,3]
[330613959,1719624680393,-3979.85,0.00022027,3]
[330613960,1719624680404,-724.25,0.00022027,3]
[330613961,1719624680414,-500.0,0.00022027,3]
[330613962,1719624680425,-1495.61,0.00022027,3]
[330613963,1719624680438,-500.0,0.00022027,3]
[330613964,1719624680448,-1446.97,0.00022027,3]
[330613965,1719624680459,-1966.0,0.00022027,3]
[330613966,1719624680472,-2929.84,0.00022027,3]
[330613967,1719624680482,-500.0,0.00022027,3]
[330613968,1719624680493,-500.0,0.00022027,3]
[330613969,1719624680503,-7736.62,0.00022027,3]
[330613970,1719624680513,-500.0,0.00022027,3]
[330613971,1719624680523,-500.0,0.00022027,3]
[330613972,1719624680534,-500.0,0.00022027,3]
[330613973,1719624680545,-1527.33,0.00022027,3]
[330613974,1719624680555,-500.0,0.00022027,3]
[330613975,1719624680566,-725.11,0.00022027,3]
[330613976,1719624680578,-1633.64,0.00022027,3]
[330613977,1719624680588,-585.53,0.00022027,3]
[330613978,1719624680599,-1130.0,0.00022027,3]
[330613979,1719624680610,-713.03,0.00022027,3]
[330613980,1719624680620,-665.18,0.00022027,3]
[330613981,1719624680630,-2883.25,0.00022027,3]
[330613982,1719624680640,-500.0,0.00022027,3]
[330613983,1719624680651,-2369.73,0.00022027,3]
[330613984,1719624680661,-500.0,0.00022027,3]
[330613985,1719624680671,-2056.71,0.00022027,3]
[330613986,1719624680682,-500.0,0.00022027,3]
[330613987,1719624680694,-1665.41,0.00022027,3]
[330613988,1719624680704,-3455.43,0.00022027,3]
[330613989,1719624680715,-2667.61,0.00022027,3]
[330613990,1719624680725,-5971.31,0.00022027,3]
[330613991,1719624680735,-271.92839801,0.00022027,3]
[330613992,1719624680746,-656.27,0.00022027,3]
[330613993,1719624680756,-5568.09,0.00022027,3]
[330613994,1719624680767,-500.0,0.00022027,3]
[330613995,1719624680777,-942.6,0.00022027,3]
[330613996,1719624680788,-500.0,0.00022027,3]
[330613997,1719624680798,-5813.02,0.00022027,3]
[330613998,1719624680808,-500.0,0.00022027,3]
[330613999,1719624680820,-386.31,0.00022027,7]
[330614000,1719624680830,-500.0,0.00022027,3]
[330614001,1719624680841,-1015.65,0.00022027,3]
[330614002,1719624680852,-500.0,0.00022027,3]
[330614003,1719624680862,-2677.05,0.00022027,3]
[330614004,1719624680872,-1920.59,0.00022027,3]
[330614005,1719624680883,-1497.98,0.00022027,3]
[330614006,1719624680893,-500.0,0.00022027,3]
[330614007,1719624680904,-1658.78,0.00022027,3]
[330614008,1719624680915,-934.33,0.00022027,3]
[330614009,1719624681292,-2535.07,0.00022027,3]
[330614010,1719624681353,-500.0,0.00022027,3]
[330614011,1719624681364,-500.0,0.00022027,3]
[330614012,1719624681374,-500.0,0.00022027,3]
[330614013,1719624681384,-924.97,0.00022027,3]
[330614014,1719624681395,-4996.16,0.00022027,3]
[330614015,1719624681405,-1216.48,0.00022027,3]
[330614016,1719624681415,-500.0,0.00022027,3]
[330614017,1719624681428,-866.1,0.00022027,3]
[330614018,1719624681438,-1306.34,0.00022027,3]
[330614019,1719624681448,-500.0,0.00022027,3]
[330614020,1719624681458,-500.0,0.00022027,3]
[330614021,1719624681468,-1165.04,0.00022027,3]
[330614022,1719624681477,-500.0,0.00022027,3]
[330614023,1719624681487,-500.0,0.00022027,3]
[330614024,1719624681498,-1128.53,0.00022027,3]
[330614025,1719624681508,-82815.7,0.00022027,3]
[330614026,1719624681518,-500.0,0.00022027,3]
[330614027,1719624681528,-977.6,0.00022027,3]
[330614028,1719624681537,-1607.59,0.00022027,3]
[330614029,1719624681547,-500.0,0.00022027,3]
[330614030,1719624681557,-500.0,0.00022027,3]
[330614031,1719624681567,-542.64,0.00022027,3]
[330614032,1719624681578,-500.0,0.00022027,3]
[330614033,1719624681588,-1178.67,0.00022027,3]
[330614034,1719624681597,-2467.56,0.00022027,3]
[330614035,1719624681608,-1028.31,0.00022027,3]
[330614036,1719624681617,-510.86,0.00022027,3]
[330614037,1719624681627,-1435.99,0.00022027,3]
[330614038,1719624681637,-1395.77,0.00022027,3]
[330614039,1719624681646,-500.0,0.00022027,3]
[330614040,1719624681657,-1712.86,0.00022027,3]
[330614041,1719624681668,-904.45,0.00022027,3]
[330614042,1719624681678,-3921.06,0.00022027,3]
[330614043,1719624681689,-1369.88,0.00022027,3]
[330614044,1719624681699,-500.0,0.00022027,3]
[330614045,1719624681709,-871.37,0.00022027,3]
[330614046,1719624681719,-1996.92,0.00022027,3]
[330614047,1719624681729,-2605.61,0.00022027,3]
[330614048,1719624681739,-500.0,0.00022027,3]
[330614049,1719624681751,-502.75,0.00022027,3]
[330614050,1719624681762,-500.0,0.00022027,3]
[330614051,1719624681772,-1416.94,0.00022027,3]
[330614052,1719624681783,-594.92,0.00022027,3]
[330614053,1719624681793,-8149.31,0.00022027,3]
[330614054,1719624681803,-1167.13,0.00022027,3]
[330614055,1719624681812,-1105.45,0.00022027,3]
[330614056,1719624681822,-500.0,0.00022027,3]
[330614057,1719624681832,-4346.28,0.00022027,3]
[330614058,1719624681842,-1960.55,0.00022027,3]
[330614059,1719624681851,-2519.59,0.00022027,3]
[330614060,1719624681861,-2359.31,0.00022027,3]
[330614061,1719624681871,-562.56,0.00022027,3]
[330614062,1719624681880,-500.0,0.00022027,3]
[330614063,1719624681889,-1673.78,0.00022027,3]
[330614064,1719624681899,-2458.01,0.00022027,3]
[330614065,1719624681909,-500.0,0.00022027,3]
[330614066,1719624681918,-3979.33,0.00022027,3]
[330614067,1719624681928,-500.0,0.00022027,3]
[330614068,1719624681937,-571.69502506,0.00022027,3]
[330614069,1719624681947,-732.41,0.00022027,3]
[330614070,1719624681957,-260.06944166,0.00022027,3]
[330614071,1719624681966,-500.0,0.00022027,3]
[330614072,1719624681976,-9123.39,0.00022027,3]
[330614073,1719624681985,-500.0,0.00022027,3]
[330614074,1719624681995,-675.72,0.00022027,3]
[330614075,1719624682004,-500.0,0.00022027,3]
[330614076,1719624682014,-1058.26,0.00022027,3]
[330614077,1719624682023,-2537.17,0.00022027,3]
[330614078,1719624682033,-4114.85,0.00022027,3]
[330614079,1719624682043,-770.98,0.00022027,3]
[330614080,1719624682052,-1457.73,0.00022027,3]
[330614081,1719624682062,-1024.57,0.00022027,3]
[330614082,1719624682072,-500.0,0.00022027,3]
[330614083,1719624682082,-2257.8,0.00022027,3]
[330614084,1719624682093,-654.51,0.00022027,3]
[330614085,1719624682102,-686.64,0.00022027,3]
[330614086,1719624682113,-550.06,0.00022027,3]
[330614087,1719624682123,-660.14,0.00022027,3]
[330614088,1719624682135,-1439.04,0.00022027,3]
[330614089,1719624682144,-500.0,0.00022027,3]
[330614090,1719624682154,-500.0,0.00022027,3]
[330614091,1719624682164,-500.0,0.00022027,3]
[330614092,1719624682174,-500.0,0.00022027,3]
[330614093,1719624682183,-1344.97,0.00022027,3]
[330614094,1719624682194,-1575.94,0.00022027,3]
[330614095,1719624682203,-2873.45,0.00022027,3]
[330614096,1719624682213,-931.37,0.00022027,3]
[330614097,1719624682223,-4425.19,0.00022027,3]
[330614098,1719624682233,-3034.13,0.00022027,3]
[330614099,1719624682243,-1279.74,0.00022027,3]
[330614100,1719624682254,-590.13,0.00022027,3]
[330614101,1719624682264,-2840.32,0.00022027,3]
[330614102,1719624682274,-747.41,0.00022027,3]
[330614103,1719624682284,-1432.57,0.00022027,3]
[330614104,1719624682294,-500.0,0.00022027,3]
[330614105,1719624682304,-500.0,0.00022027,3]
[330614106,1719624682314,-6046.65,0.00022027,3]
[330614107,1719624682325,-500.0,0.00022027,3]
[330614108,1719624682335,-575.88,0.00022027,3]
[330614109,1719624682349,-624.67,0.00022027,3]
[330614110,1719624682359,-1104.61,0.00022027,3]
[330614111,1719624682369,-1051.8,0.00022027,3]
[330614112,1719624682378,-580.52,0.00022027,3]
[330614113,1719624682389,-1087.6,0.00022027,3]
[330614114,1719624682399,-500.0,0.00022027,3]
[330614115,1719624682409,-500.0,0.00022027,3]
[330614116,1719624682419,-892.89,0.00022027,3]
[330614117,1719624682430,-1210.62,0.00022027,3]
[330614118,1719624682440,-500.0,0.00022027,3]
[330614119,1719624682450,-940.78,0.00022027,3]
[330614120,1719624682459,-2956.44,0.00022027,3]
[330614121,1719624682469,-650.5,0.00022027,3]
[330614122,1719624682479,-2588.95,0.00022027,3]
[330614123,1719624682488,-2870.13,0.00022027,3]
[330614124,1719624682498,-792.35,0.00022027,3]
[330614125,1719624682508,-811.03,0.00022027,3]
[330614126,1719624682518,-500.0,0.00022027,3]
[330614127,1719624682528,-1824.11,0.00022027,3]
[330614128,1719624682538,-4588.23,0.00022027,3]
[330614129,1719624682548,-1446.17,0.00022027,3]
[330614130,1719624682557,-500.0,0.00022027,3]
[330614131,1719624682567,-1491.07,0.00022027,3]
[330614132,1719624682576,-4619.97,0.00022027,3]
[330614133,1719624682585,-500.0,0.00022027,3]
[330614134,1719624682595,-3567.41,0.00022027,3]
[330614135,1719624682606,-1743.36,0.00022027,3]
[330614136,1719624682616,-2760.69,0.00022027,3]
[330614137,1719624682626,-1706.74,0.00022027,3]
[330614138,1719624682638,-648.32,0.00022027,3]
[330614139,1719624682647,-500.0,0.00022027,3]
[330614140,1719624682657,-2866.52,0.00022027,3]
[330614141,1719624682667,-958.45,0.00022027,3]
[330614142,1719624682677,-1017.33,0.00022027,3]
[330614143,1719624682686,-500.0,0.00022027,3]
[330614144,1719624682695,-3535.8,0.00022027,3]
[330614145,1719624682706,-607.37,0.00022027,3]
[330614146,1719624682716,-500.0,0.00022027,3]
[330614147,1719624682726,-1758.97,0.00022027,3]
[330614148,1719624682735,-500.0,0.00022027,3]
[330614149,1719624682745,-3320.18,0.00022027,3]
[330614150,1719624682754,-969.18,0.00022027,3]
[330614151,1719624682764,-822.41,0.00022027,3]
[330614152,1719624682773,-500.0,0.00022027,3]
[330614153,1719624682783,-500.0,0.00022027,3]
[330614154,1719624682792,-2260.43,0.00022027,3]
[330614155,1719624682802,-1098.93,0.00022027,3]
[330614156,1719624682812,-833.7,0.00022027,3]
[330614157,1719624682823,-406.43,0.00022027,3]
[330614158,1719624682835,-500.0,0.00022027,3]
[330614159,1719624682845,-500.0,0.00022027,3]
[330614160,1719624682855,-880.7,0.00022027,3]
[330614161,1719624682865,-500.0,0.00022027,3]
[330614162,1719624682874,-500.0,0.00022027,3]
[330614163,1719624682884,-1981.42,0.00022027,3]
[330614164,1719624682894,-2610.65,0.00022027,3]
[330614165,1719624682904,-1034.91,0.00022027,3]
[330614166,1719624682913,-3817.82,0.00022027,3]
[330614167,1719624682923,-500.0,0.00022027,3]
[330614168,1719624682932,-500.0,0.00022027,3]
[330614169,1719624682943,-924.99,0.00022027,3]
[330614170,1719624682952,-562.25,0.00022027,3]
[330614171,1719624682962,-500.0,0.00022027,3]
[330614172,1719624682971,-500.0,0.00022027,3]
[330614173,1719624682980,-500.0,0.00022027,3]
[330614174,1719624682989,-1404.17,0.00022027,3]
[330614175,1719624682999,-684.56,0.00022027,3]
[330614176,1719624683009,-1120.09,0.00022027,3]
[330614177,1719624683020,-500.0,0.00022027,3]
[330614178,1719624683030,-2523.79,0.00022027,3]
[330614179,1719624683040,-1440.61,0.00022027,3]
[330614180,1719624683050,-500.0,0.00022027,3]
[330614181,1719624683060,-5350.62,0.00022027,3]
[330614182,1719624683070,-4196.26,0.00022027,3]
[330614183,1719624683080,-500.0,0.00022027,3]
[330614184,1719624683090,-2025.88,0.00022027,3]
[330614185,1719624683099,-807.3,0.00022027,3]
[330614186,1719624683109,-500.0,0.00022027,3]
[330614187,1719624683119,-500.0,0.00022027,3]
[330614188,1719624683128,-3855.22,0.00022027,3]
[330614189,1719624683138,-632.54,0.00022027,3]
[330614190,1719624683148,-1676.85,0.00022027,3]
[330614191,1719624683157,-500.0,0.00022027,3]
[330614192,1719624683167,-4748.91,0.00022027,3]
[330614193,1719624683176,-1182.52,0.00022027,3]
[330614194,1719624683186,-500.0,0.00022027,3]
[330614195,1719624683196,-500.0,0.00022027,3]
[330614196,1719624683205,-500.0,0.00022027,3]
[330614197,1719624683215,-500.0,0.00022027,3]
[330614198,1719624683225,-500.0,0.00022027,3]
[330614199,1719624683236,-724.04,0.00022027,3]
[330614200,1719624683245,-1197.14,0.00022027,3]
[330614201,1719624683255,-500.0,0.00022027,3]
[330614202,1719624683266,-500.0,0.00022027,3]
[330614203,1719624683275,-500.0,0.00022027,3]
[330614204,1719624683285,-765.48,0.00022027,3]
[330614205,1719624683295,-1744.26,0.00022027,3]
[330614206,1719624683304,-500.0,0.00022027,3]
[330614207,1719624683313,-4325.54,0.00022027,3]
[330614208,1719624683323,-2332.41,0.00022027,3]
[330614209,1719624683333,-1377.2,0.00022027,3]
[330614210,1719624683344,-931.17,0.00022027,3]
[330614211,1719624683357,-500.0,0.00022027,3]
[330614212,1719624683367,-789.81,0.00022027,3]
[330614213,1719624683377,-777.02,0.00022027,3]
[330614214,1719624683388,-2280.02,0.00022027,3]
[330614215,1719624683397,-500.0,0.00022027,3]
[330614216,1719624683407,-2836.9,0.00022027,3]
[330614217,1719624683417,-2510.94,0.00022027,3]
[330614218,1719624683427,-1105.0,0.00022027,3]
[330614219,1719624683437,-500.0,0.00022027,2]
[330614220,1719624683448,-1932.11,0.00022027,3]
[330614221,1719624683457,-5049.46,0.00022027,3]
[330614222,1719624683467,-4193.97,0.00022027,3]
[330614223,1719624683477,-500.0,0.00022027,3]
[330614224,1719624683487,-500.0,0.00022027,3]
[330614225,1719624683496,-3760.29,0.00022027,3]
[330614226,1719624683506,-1078.75,0.00022027,3]
[330614227,1719624683516,-500.0,0.00022027,3]
[330614228,1719624683526,-16484.81,0.00022027,3]
[330614229,1719624683536,-4798.26,0.00022027,3]
[330614230,1719624683545,-1821.11,0.00022027,3]
[330614231,1719624683555,-2280.59,0.00022027,3]
[330614232,1719624683566,-3280.32,0.00022027,3]
[330614233,1719624683576,-966.0,0.00022027,3]
[330614234,1719624683585,-1846.57,0.00022027,3]
[330614235,1719624683596,-933.12,0.00022027,3]
[330614236,1719624683605,-1431.07,0.00022027,3]
[330614237,1719624683615,-794.63,0.00022027,3]
[330614238,1719624683625,-500.0,0.00022027,3]
[330614239,1719624683635,-500.0,0.00022027,3]
[330614240,1719624683645,-500.0,0.00022027,3]
[330614241,1719624683655,-500.0,0.00022027,3]
[330614242,1719624683665,-500.0,0.00022027,3]
[330614243,1719624683674,-1610.48,0.00022027,3]
[330614244,1719624683684,-1072.49,0.00022027,3]
[330614245,1719624683696,-2364.25,0.00022027,3]
[330614246,1719624683832,-409.08711168,0.00022027,3]
[330614247,1719624683844,-3984.0,0.00022027,3]
[330614248,1719624683853,-836.45,0.00022027,3]
[330614249,1719624683864,-1205.32,0.00022027,3]
[330614250,1719624683874,-964.36,0.00022027,3]
[330614251,1719624683883,-3480.08,0.00022027,3]
[330614252,1719624683895,-2603.31,0.00022027,3]
[330614253,1719624683905,-4390.87,0.00022027,3]
[330614254,1719624683915,-11220.87,0.00022027,3]
[330614255,1719624683925,-567.31,0.00022027,3]
[330614256,1719624683935,-581.27,0.00022027,3]
[330614257,1719624683948,-500.0,0.00022027,3]
[330614258,1719624683958,-1044.91,0.00022027,3]
[330614259,1719624683969,-736.12,0.00022027,3]
[330614260,1719624683982,-4053.71,0.00022027,3]
[330614261,1719624683992,-500.0,0.00022027,3]
[330614262,1719624684002,-309.53,0.00022027,2]
[330614263,1719624684012,-150.0,0.00022027,2]
[330614264,1719624684022,-150.0,0.00022027,2]
[330614265,1719624684032,-150.0,0.00022027,2]
[330614266,1719624684042,-150.85,0.00022027,2]
[330614267,1719624684052,-300.0,0.00022033,2]
[330614268,1719624684062,-164.03569801,0.00022048,2]
[330614269,1719624684071,-300.0,0.0002205,2]
[330614270,1719624684080,-1768.49199186,0.00022058,2]
[330614271,1719624684090,-1500.0,0.00022064,2]
[330614272,1719624684101,-150.0,0.00022071,2]
[330614273,1719624684111,-150.0,0.00022082,2]
[330614274,1719624684120,-12067.90706724,0.00022095,2]
[330614275,1719624684129,-300.0,0.00022103,2]
[330614276,1719624684139,-150.0,0.00022135,10]
[330614277,1719624684149,-150.0,0.00022135,10]
[330614278,1719624684159,-150.0,0.00022135,10]
[330614279,1719624684169,-150.0,0.00022135,10]
[330614280,1719624684179,-150.0,0.00022135,10]
[330614281,1719624684189,-150.0,0.00022135,10]
[330614282,1719624684199,-1374.53,0.00022135,3]
[330614283,1719624684208,-1374.53,0.00022135,3]
[330614284,1719624684218,-1374.53,0.00022135,3]
[330614285,1719624684228,-1374.53,0.00022135,3]
[330614286,1719624684237,-1374.53,0.00022135,3]
[330614287,1719624684248,-1374.55236486,0.00022135,3]
[330614288,1719624684258,-313.0527623,0.00022136,3]
[330614289,1719624684267,-500.0,0.00022136,3]
[330614290,1719624684277,-500.0,0.00022136,3]
[330614291,1719624684287,-500.0,0.00022136,3]
[330614292,1719624684296,-500.0,0.00022136,3]
[330614293,1719624684306,-500.0,0.00022136,3]
[330614294,1719624684315,-2130.52,0.00022136,3]
[330614295,1719624684325,-573.73689676,0.00022136,3]
[330614296,1719624684335,-500.0,0.00022136,3]
[330614297,1719624684348,-2760.53,0.00022136,3]
[330614298,1719624684359,-1389.6,0.00022136,3]
[330614299,1719624684369,-500.0,0.00022136,3]
[330614300,1719624684380,-500.0,0.00022136,3]
[330614301,1719624684390,-500.0,0.00022136,3]
[330614302,1719624684400,-500.0,0.00022136,3]
[330614303,1719624684410,-534.96,0.00022136,3]
[330614304,1719624684420,-500.0,0.00022136,3]
[330614305,1719624684431,-3528.22,0.00022136,3]
[330614306,1719624684441,-1943.17,0.00022136,3]
[330614307,1719624684451,-500.0,0.00022136,3]
[330614308,1719624684461,-500.0,0.00022136,2]
[330614309,1719624684471,-1338.36,0.00022136,3]
[330614310,1719624684481,-500.0,0.00022136,3]
[330614311,1719624684492,-500.0,0.00022136,3]
[330614312,1719624684503,-514.28187839,0.00022136,3]
[330614313,1719624684513,-500.0,0.00022136,3]
[330614314,1719624684524,-12415.38,0.00022136,3]
[330614315,1719624684534,-1512.69,0.00022136,3]
[330614316,1719624684544,-500.0,0.00022136,3]
[330614317,1719624684554,-539.63,0.00022136,3]
[330614318,1719624684564,-500.0,0.00022136,3]
[330614319,1719624684574,-500.0,0.00022136,3]
[330614320,1719624684584,-826.44,0.00022136,3]
[330614321,1719624684594,-500.0,0.00022136,3]
[330614322,1719624684604,-500.0,0.00022136,3]
[330614323,1719624684614,-3010.63,0.00022136,3]
[330614324,1719624684624,-500.0,0.00022136,3]
[330614325,1719624684634,-776.87,0.00022136,3]
[330614326,1719624684643,-855.43,0.00022136,3]
[330614327,1719624684653,-1753.0,0.00022136,3]
[330614328,1719624684664,-392.36,0.00022136,3]
[330614329,1719624684673,-500.0,0.00022136,3]
[330614330,1719624684683,-500.0,0.00022136,3]
[330614331,1719624684693,-500.0,0.00022136,3]
[330614332,1719624684703,-1125.2,0.00022136,3]
[330614333,1719624684713,-500.0,0.00022136,3]
[330614334,1719624684723,-659.14,0.00022136,3]
[330614335,1719624684733,-500.0,0.00022136,3]
[330614336,1719624684742,-688.62,0.00022136,3]
[330614337,1719624684753,-500.0,0.00022136,3]
[330614338,1719624684762,-500.0,0.00022136,3]
[330614339,1719624684771,-1195.33,0.00022136,3]
[330614340,1719624684781,-500.0,0.00022136,3]
[330614341,1719624684791,-500.0,0.00022136,3]
[330614342,1719624684801,-1036.69,0.00022136,3]
[330614343,1719624684810,-500.0,0.00022136,2]
[330614344,1719624684820,-632.34,0.00022136,3]
[330614345,1719624684829,-3205.24,0.00022136,3]
[330614346,1719624684838,-768.76,0.00022136,3]
[330614347,1719624684847,-1133.69,0.00022136,3]
[330614348,1719624684857,-200.0,0.00022136,3]
[330614349,1719624684866,-1409.6,0.00022136,3]
[330614350,1719624684876,-500.0,0.00022136,3]
[330614351,1719624684885,-1356.92,0.00022136,3]
[330614352,1719624684895,-500.0,0.00022136,3]
[330614353,1719624684904,-309.61703001,0.00022136,3]
[330614354,1719624684913,-888.51,0.00022136,3]
[330614355,1719624684923,-500.0,0.00022136,3]
[330614356,1719624684933,-816.48,0.00022136,3]
[330614357,1719624684943,-645.59,0.00022136,3]
[330614358,1719624684952,-500.0,0.00022136,3]
[330614359,1719624684961,-555.63,0.00022136,3]
[330614360,1719624684971,-645.38,0.00022136,3]
[330614361,1719624684980,-656.55,0.00022136,3]
[330614362,1719624684989,-500.0,0.00022136,3]
[330614363,1719624684998,-1031.72,0.00022136,3]
[330614364,1719624685007,-500.0,0.00022136,3]
[330614365,1719624685017,-500.0,0.00022136,3]
[330614366,1719624685026,-500.0,0.00022136,3]
[330614367,1719624685036,-1074.38,0.00022136,3]
[330614368,1719624685045,-913.18,0.00022136,3]
[330614369,1719624685054,-1669.08,0.00022136,3]
[330614370,1719624685064,-500.0,0.00022136,3]
[330614371,1719624685074,-649.95,0.00022136,3]
[330614372,1719624685083,-500.0,0.00022136,3]
[330614373,1719624685093,-500.0,0.00022136,3]
[330614374,1719624685102,-500.0,0.00022136,3]
[330614375,1719624685112,-928.8,0.00022136,3]
[330614376,1719624685121,-500.0,0.00022136,3]
[330614377,1719624685131,-500.0,0.00022136,3]
[330614378,1719624685141,-507.61,0.00022136,3]
[330614379,1719624685150,-849.54,0.00022136,3]
[330614380,1719624685159,-500.0,0.00022136,3]
[330614381,1719624685169,-500.0,0.00022136,3]
[330614382,1719624685178,-684.63,0.00022136,3]
[330614383,1719624685187,-500.0,0.00022136,3]
[330614384,1719624685198,-769.41,0.00022136,3]
[330614385,1719624685207,-500.0,0.00022136,3]
[330614386,1719624685217,-671.92,0.00022136,3]
[330614387,1719624685227,-500.0,0.00022136,3]
[330614388,1719624685237,-500.0,0.00022136,3]
[330614389,1719624685246,-500.0,0.00022136,3]
[330614390,1719624685257,-713.77,0.00022136,3]
[330614391,1719624685267,-178.59048175,0.00022136,3]
[330614392,1719624685276,-928.4,0.00022136,3]
[330614393,1719624685286,-500.0,0.00022136,3]
[330614394,1719624685296,-500.0,0.00022136,3]
[330614395,1719624685306,-1659.53,0.00022136,3]
[330614396,1719624685315,-500.0,0.00022136,3]
[330614397,1719624685325,-3868.76,0.00022136,3]
[330614398,1719624685334,-500.0,0.00022136,3]
[330614399,1719624685346,-500.0,0.00022136,3]
[330614400,1719624685356,-682.25,0.00022136,3]
[330614401,1719624685366,-1488.07,0.00022136,3]
[330614402,1719624685385,-500.0,0.00022136,3]
[330614403,1719624685396,-500.0,0.00022136,3]
[330614404,1719624685405,-514.14,0.00022136,3]
[330614405,1719624685415,-500.0,0.00022136,3]
[330614406,1719624685425,-766.27,0.00022136,3]
[330614407,1719624685434,-500.0,0.00022136,3]
[330614408,1719624685444,-351.24853484,0.00022136,3]
[330614409,1719624685454,-500.0,0.00022136,3]
[330614410,1719624685464,-500.0,0.00022136,3]
[330614411,1719624685473,-771.64,0.00022136,3]
[330614412,1719624685483,-500.0,0.00022136,3]
[330614413,1719624685493,-710.73,0.00022136,3]
[330614414,1719624685503,-597.79642135,0.00022136,3]
[330614415,1719624685512,-500.0,0.00022136,3]
[330614416,1719624685523,-500.0,0.00022136,3]
[330614417,1719624685532,-500.0,0.00022136,3]
[330614418,1719624685542,-500.0,0.00022136,3]
[330614419,1719624685552,-741.26,0.00022136,3]
[330614420,1719624685562,-519.1,0.00022136,3]
[330614421,1719624685572,-500.0,0.00022136,3]
[330614422,1719624685582,-502.55,0.00022136,3]
[330614423,1719624685592,-1173.67,0.00022136,3]
[330614424,1719624685602,-509.98,0.00022136,3]
[330614425,1719624685611,-500.0,0.00022136,3]
[330614426,1719624685621,-500.0,0.00022136,3]
[330614427,1719624685630,-825.3,0.00022136,3]
[330614428,1719624685640,-500.0,0.00022136,3]
[330614429,1719624685650,-500.0,0.00022136,3]
[330614430,1719624685659,-500.0,0.00022136,3]
[330614431,1719624685669,-500.0,0.00022136,3]
[330614432,1719624685679,-500.0,0.00022136,3]